fUSD/lending_fUSD_20260605
["ID","MTS","AMOUNT","RATE_DAILY","PERIOD"]
[424154778,1780614649000,-150.0,0.00028181,7]
[424154779,1780614649000,-150.0,0.00028187,7]
[424154780,1780614649000,-150.0,0.00028187,7]
[424154781,1780614649000,-206.93671141,0.00028196,7]
[424154786,1780614649000,-206.93671141,0.00028284,7]
[424154789,1780614649000,-150.0,0.00028312,7]
[424154790,1780614649000,-206.93671141,0.00028313,7]
[424154791,1780614649000,-150.0,0.00028342,7]
[424154787,1780614649000,-150.0,0.00028287,7]
[424154797,1780614649000,-150.0,0.00028387,7]
[424154792,1780614649000,-206.93671141,0.00028342,7]
[424154795,1780614649000,-206.93671141,0.00028371,7]
[424154793,1780614649000,-437.4,0.00028344,2]
[424154796,1780614649000,-150.0,0.0002838,7]
[424154794,1780614649000,-450.0,0.00028344,2]
[424154798,1780614649000,-150.0,0.00028387,7]
[424154800,1780614649000,-150.0,0.00028391,2]
[424154799,1780614649000,-150.0,0.00028391,2]
[424154811,1780614649000,-150.0,0.00028487,7]
[424154827,1780614649000,-950.3,0.0002863,30]
[424154834,1780614649000,-3551.0,0.0002866,2]
[424154835,1780614649000,-1357.0,0.0002866,2]
[424154859,1780614649000,-280.37,0.00028756,7]
[424154865,1780614649000,-150.0,0.00028786,7]
[424154864,1780614649000,-150.0,0.00028786,7]
[424154868,1780614649000,-950.3,0.00028797,7]
[424154867,1780614649000,-280.37,0.00028788,30]
[424154866,1780614649000,-280.02,0.00028788,30]
[424154871,1780614649000,-1047.98,0.00028797,7]
[424154872,1780614649000,-877.13,0.000288,14]
[424154870,1780614649000,-627.82,0.00028797,7]
[424154869,1780614649000,-960.67,0.00028797,7]
[424154873,1780614649000,-895.2,0.000288,30]
[424154862,1780614649000,-206.93671141,0.00028781,7]
[424154875,1780614649000,-280.02,0.0002882,2]
[424154884,1780614649000,-1000.0,0.00028826,2]
[424154883,1780614649000,-1346.67,0.00028826,2]
[424154881,1780614649000,-2000.0,0.00028826,2]
[424154880,1780614649000,-2000.0,0.00028826,2]
[424154877,1780614649000,-150.0,0.00028825,7]
[424154876,1780614649000,-280.37,0.0002882,2]
[424154879,1780614649000,-2000.0,0.00028826,2]
[424154878,1780614649000,-2000.0,0.00028826,2]
[424154886,1780614649000,-206.93671141,0.0002884,7]
[424154885,1780614649000,-268.63,0.00028826,2]
[424154833,1780614649000,-150.0,0.00028649,7]
[424154882,1780614649000,-2000.0,0.00028826,2]
[424154858,1780614649000,-280.02,0.00028756,7]
[424154874,1780614649000,-206.93671141,0.00028811,7]
[424154860,1780614649000,-150.0,0.00028773,2]
[424154831,1780614649000,-1047.98,0.0002863,30]
[424154863,1780614649000,-150.0,0.00028784,7]
[424154836,1780614649000,-525.0,0.0002866,2]
[424154830,1780614649000,-627.82,0.0002863,30]
[424154832,1780614649000,-206.93671141,0.00028635,7]
[424154829,1780614649000,-960.67,0.0002863,30]
[424154837,1780614649000,-1273.0,0.0002866,2]
[424154843,1780614649000,-150.0,0.00028664,7]
[424154842,1780614649000,-6070.0,0.00028663,2]
[424154841,1780614649000,-3641.0,0.00028663,2]
[424154844,1780614649000,-206.93671141,0.00028664,7]
[424154850,1780614649000,-206.93671141,0.00028694,7]
[424154845,1780614649000,-150.0,0.00028686,7]
[424154840,1780614649000,-1226.0,0.00028663,2]
[424154849,1780614649000,-280.37,0.00028693,30]
[424154857,1780614649000,-206.93671141,0.00028752,7]
[424154856,1780614649000,-280.37,0.00028725,2]
[424154854,1780614649000,-206.93671141,0.00028723,7]
[424154855,1780614649000,-280.02,0.00028725,2]
[424154852,1780614649000,-150.0,0.00028717,7]
[424154861,1780614649000,-150.0,0.00028773,2]
[424154853,1780614649000,-200.0,0.00028722,2]
[424154847,1780614649000,-504.0,0.00028692,3]
[424154846,1780614649000,-150.0,0.00028686,7]
[424154851,1780614649000,-1707.67,0.000287,7]
[424154848,1780614649000,-280.02,0.00028693,30]
[424154929,1780614650000,-369.78045339,0.00029,2]
[424154928,1780614650000,-5306.50421534,0.00029,2]
[424154931,1780614650000,-10000.0,0.00029,2]
[424154924,1780614650000,-206.93671141,0.00028986,7]
[424154923,1780614650000,-150.0,0.00028986,7]
[424154922,1780614650000,-150.0,0.00028986,7]
[424154932,1780614650000,-2000.0,0.00029,2]
[424154918,1780614650000,-280.37,0.00028979,30]
[424154914,1780614650000,-627.82,0.00028964,2]
[424154919,1780614650000,-150.0,0.00028986,7]
[424154927,1780614650000,-150.0,0.00028986,7]
[424154921,1780614650000,-265.84083951,0.00028986,7]
[424154925,1780614650000,-150.00000001,0.00028986,7]
[424154942,1780614650000,-275.86890538,0.00029,2]
[424154930,1780614650000,-1000.0,0.00029,2]
[424154933,1780614650000,-2000.0,0.00029,2]
[424154935,1780614650000,-6172.60701306,0.00029,2]
[424154936,1780614650000,-528.6,0.00029,2]
[424154937,1780614650000,-2453.0,0.00029,7]
[424154941,1780614650000,-4984.47681238,0.00029,2]
[424154945,1780614650000,-151.0,0.0002901,7]
[424154938,1780614650000,-1119.0,0.00029,2]
[424154939,1780614650000,-4984.47681238,0.00029,2]
[424154944,1780614650000,-151.0,0.0002901,7]
[424154943,1780614650000,-30805.46185503,0.00029,7]
[424154911,1780614650000,-950.3,0.00028964,2]
[424154926,1780614650000,-150.0,0.00028986,7]
[424154912,1780614650000,-990.56,0.00028964,2]
[424154893,1780614650000,-280.37,0.00028883,30]
[424154915,1780614650000,-1047.98,0.00028964,2]
[424154891,1780614650000,-206.93671141,0.00028869,7]
[424154888,1780614650000,-280.02,0.00028852,7]
[424154890,1780614650000,-1000.0,0.00028867,2]
[424154892,1780614650000,-280.02,0.00028883,30]
[424154887,1780614650000,-150.0,0.00028851,7]
[424154889,1780614650000,-280.37,0.00028852,7]
[424154894,1780614650000,-150.0,0.00028886,7]
[424154896,1780614650000,-206.93671141,0.00028898,7]
[424154895,1780614650000,-150.0,0.00028886,7]
[424154898,1780614650000,-1644.92196196,0.000289,2]
[424154905,1780614650000,-18236.0,0.00028927,2]
[424154908,1780614650000,-280.37,0.00028947,7]
[424154916,1780614650000,-179.20247452,0.00028971,2]
[424154906,1780614650000,-206.93671141,0.00028928,7]
[424154904,1780614650000,-150.0,0.00028919,7]
[424154897,1780614650000,-1179.31,0.000289,7]
[424154899,1780614650000,-1644.92196194,0.000289,2]
[424154901,1780614650000,-11843.0,0.00028904,2]
[424154903,1780614650000,-280.37,0.00028915,2]
[424154900,1780614650000,-1644.92196194,0.000289,2]
[424154902,1780614650000,-280.02,0.00028915,2]
[424154910,1780614650000,-624.03,0.00028964,2]
[424154909,1780614650000,-206.93671141,0.00028957,7]
[424154920,1780614650000,-150.0,0.00028986,7]
[424154917,1780614650000,-280.02,0.00028979,30]
[424154913,1780614650000,-960.67,0.00028964,2]
[424154907,1780614650000,-280.02,0.00028947,7]
[424154940,1780614650000,-4984.47681238,0.00029,2]
[424154934,1780614650000,-727.78,0.00029,2]
[424154946,1780614650000,-151.0,0.0002901,7]
[424154976,1780614650000,-300.86756511,0.0002913,20]
[424154977,1780614650000,-656.09076806,0.00029132,2]
[424154981,1780614650000,-960.67,0.00029132,30]
[424154983,1780614650000,-1047.98,0.00029132,30]
[424154987,1780614650000,-280.37,0.00029169,30]
[424154988,1780614650000,-280.02,0.00029201,2]
[424154992,1780614650000,-950.3,0.00029299,7]
[424154984,1780614650000,-280.02,0.00029137,7]
[424154986,1780614650000,-280.02,0.00029169,30]
[424154982,1780614650000,-627.82,0.00029132,30]
[424154985,1780614650000,-280.37,0.00029137,7]
[424154990,1780614650000,-280.07,0.00029232,7]
[424154973,1780614650000,-355.85969404,0.00029101,2]
[424154989,1780614650000,-280.37,0.00029201,2]
[424154994,1780614650000,-990.56,0.00029299,7]
[424154998,1780614650000,-500.0,0.00029305,18]
[424154993,1780614650000,-620.72,0.00029299,7]
[424154999,1780614650000,-437.0,0.00029369,30]
[424154995,1780614650000,-960.67,0.00029299,7]
[424154997,1780614650000,-1047.98,0.00029299,7]
[424155000,1780614650000,-258.0,0.00029369,30]
[424155003,1780614650000,-245.0,0.00029369,30]
[424154996,1780614650000,-627.82,0.00029299,7]
[424155001,1780614650000,-2842.0,0.00029369,30]
[424155002,1780614650000,-443.0,0.00029369,30]
[424155004,1780614650000,-2393.0,0.00029369,30]
[424154991,1780614650000,-280.56,0.00029232,7]
[424154975,1780614650000,-280.37,0.00029105,2]
[424154947,1780614650000,-280.02,0.0002901,2]
[424154971,1780614650000,-368.4811735,0.00029101,2]
[424154952,1780614650000,-199.44119473,0.00029066,2]
[424154951,1780614650000,-326.57418588,0.00029066,2]
[424154955,1780614650000,-157.77367056,0.00029066,2]
[424154948,1780614650000,-280.37,0.0002901,2]
[424154949,1780614650000,-280.02,0.00029042,7]
[424154950,1780614650000,-280.37,0.00029042,7]
[424154954,1780614650000,-431.60767427,0.00029066,2]
[424154974,1780614650000,-280.02,0.00029105,2]
[424154953,1780614650000,-158.93674299,0.00029066,2]
[424154957,1780614650000,-323.74134505,0.00029066,2]
[424154959,1780614650000,-280.37,0.00029074,30]
[424154960,1780614650000,-375.77654803,0.00029082,2]
[424154962,1780614650000,-196.92523363,0.00029082,2]
[424154956,1780614650000,-332.99407554,0.00029066,2]
[424154963,1780614650000,-188.53927733,0.00029082,2]
[424154961,1780614650000,-183.67012409,0.00029082,2]
[424154978,1780614650000,-950.3,0.00029132,30]
[424154969,1780614650000,-185.11451151,0.00029101,2]
[424154980,1780614650000,-990.56,0.00029132,30]
[424154979,1780614650000,-620.72,0.00029132,30]
[424154970,1780614650000,-336.8341496,0.00029101,2]
[424154972,1780614650000,-338.8959711,0.00029101,2]
[424154965,1780614650000,-318.04835438,0.000291,2]
[424154958,1780614650000,-280.02,0.00029074,30]
[424154966,1780614650000,-305.41977868,0.00029101,2]
[424154967,1780614650000,-300.67782021,0.00029101,2]
[424154964,1780614650000,-336.76738959,0.000291,2]
[424154968,1780614650000,-193.87959644,0.00029101,2]
[424155043,1780614651000,-1047.98,0.00029634,30]
[424155044,1780614651000,-877.13,0.000297,14]
[424155052,1780614651000,-166.854,0.00029869,2]
[424155042,1780614651000,-990.56,0.00029634,30]
[424155041,1780614651000,-502.61,0.000296,7]
[424155035,1780614651000,-450.0,0.00029484,2]
[424155040,1780614651000,-501.75109673,0.00029596,2]
[424155031,1780614651000,-450.0,0.00029484,2]
[424155033,1780614651000,-450.0,0.00029484,2]
[424155032,1780614651000,-450.0,0.00029484,2]
[424155051,1780614651000,-242.103,0.00029869,2]
[424155045,1780614651000,-266.5838277,0.00029758,2]
[424155056,1780614651000,-150.0,0.00029869,2]
[424155047,1780614651000,-230.0,0.00029869,2]
[424155049,1780614651000,-250.0,0.00029869,2]
[424155048,1780614651000,-150.0,0.00029869,2]
[424155050,1780614651000,-247.005,0.00029869,2]
[424155053,1780614651000,-246.38,0.00029869,2]
[424155054,1780614651000,-250.0,0.00029869,2]
[424155064,1780614651000,-216.37853026,0.00029938,2]
[424155057,1780614651000,-151.191,0.00029869,2]
[424155055,1780614651000,-167.419,0.00029869,2]
[424155059,1780614651000,-176.25491771,0.00029873,4]
[424155061,1780614651000,-1179.31,0.000299,7]
[424155063,1780614651000,-197.42994637,0.00029938,2]
[424155034,1780614651000,-450.0,0.00029484,2]
[424155046,1780614651000,-179.20247452,0.0002984,2]
[424155039,1780614651000,-150.0,0.00029534,2]
[424155017,1780614651000,-995.0,0.00029377,30]
[424155030,1780614651000,-450.0,0.00029484,2]
[424155062,1780614651000,-228.9226691,0.00029938,2]
[424155005,1780614651000,-557.0,0.00029369,30]
[424155008,1780614651000,-151.0,0.00029369,7]
[424155006,1780614651000,-557.281833,0.00029369,7]
[424155007,1780614651000,-557.281833,0.00029369,7]
[424155011,1780614651000,-557.281833,0.00029369,7]
[424155015,1780614651000,-749.673451,0.00029369,7]
[424155009,1780614651000,-557.281833,0.00029369,7]
[424155013,1780614651000,-749.673451,0.00029369,7]
[424155014,1780614651000,-749.673451,0.00029369,7]
[424155010,1780614651000,-151.0,0.00029369,7]
[424155016,1780614651000,-749.673451,0.00029369,7]
[424155012,1780614651000,-154.772341,0.00029369,7]
[424155019,1780614651000,-279.0,0.00029387,30]
[424155021,1780614651000,-183.0,0.00029387,30]
[424155024,1780614651000,-179.20247452,0.00029406,2]
[424155022,1780614651000,-314.0,0.00029387,30]
[424155020,1780614651000,-489.0,0.00029387,30]
[424155023,1780614651000,-1760.0,0.00029387,30]
[424155026,1780614651000,-1047.98,0.00029467,2]
[424155027,1780614651000,-504.0,0.00029469,4]
[424155025,1780614651000,-990.56,0.00029467,2]
[424155018,1780614651000,-332.0,0.00029377,30]
[424155028,1780614651000,-4971.47303121,0.00029484,2]
[424155029,1780614651000,-450.0,0.00029484,2]
[424155038,1780614651000,-1707.67,0.000295,7]
[424155037,1780614651000,-430.0,0.00029484,2]
[424155036,1780614651000,-450.0,0.00029484,2]
[424155060,1780614651000,-150.60915763,0.00029873,4]
[424155058,1780614651000,-187.0,0.00029869,2]
[424155077,1780614651000,-191.54786584,0.00029938,2]
[424155102,1780614651000,-205.85971107,0.00029973,2]
[424155100,1780614651000,-212.80808437,0.00029973,2]
[424155096,1780614651000,-451.01673031,0.00029973,2]
[424155099,1780614651000,-505.2512244,0.00029973,2]
[424155097,1780614651000,-183.69354974,0.00029973,2]
[424155110,1780614651000,-200.0,0.0003,2]
[424155108,1780614651000,-533.78954106,0.00029973,2]
[424155109,1780614651000,-244.7367933,0.00029973,2]
[424155112,1780614651000,-650.0,0.0003,2]
[424155103,1780614651000,-214.11853685,0.00029973,2]
[424155114,1780614651000,-800.60606509,0.0003007,2]
[424155111,1780614651000,-173.0,0.0003,14]
[424155105,1780614651000,-168.21826248,0.00029973,2]
[424155094,1780614651000,-207.00143023,0.00029973,2]
[424155104,1780614651000,-508.34395666,0.00029973,2]
[424155107,1780614651000,-213.88594878,0.00029973,2]
[424155115,1780614651000,-1801.58672356,0.0003007,2]
[424155116,1780614651000,-2453.0,0.000301,7]
[424155119,1780614651000,-400.44,0.00030136,30]
[424155118,1780614651000,-437.39384537,0.00030132,7]
[424155117,1780614651000,-155.3256539,0.00030124,22]
[424155121,1780614651000,-1339.0,0.00030136,2]
[424155125,1780614651000,-194.60115358,0.00030137,2]
[424155124,1780614651000,-276.7,0.00030137,2]
[424155120,1780614651000,-200.22,0.00030136,30]
[424155122,1780614651000,-1375.0,0.00030136,2]
[424155066,1780614651000,-489.86127882,0.00029938,2]
[424155123,1780614651000,-242.02,0.00030137,2]
[424155106,1780614651000,-218.15101478,0.00029973,2]
[424155093,1780614651000,-458.12966802,0.00029973,2]
[424155113,1780614651000,-2000.0,0.0003,7]
[424155095,1780614651000,-387.75919289,0.00029973,2]
[424155098,1780614651000,-370.22902302,0.00029973,2]
[424155068,1780614651000,-299.79928496,0.00029938,2]
[424155067,1780614651000,-261.58037202,0.00029938,2]
[424155074,1780614651000,-315.54734112,0.00029938,2]
[424155071,1780614651000,-317.87348597,0.00029938,2]
[424155069,1780614651000,-158.59563751,0.00029938,2]
[424155065,1780614651000,-208.39110537,0.00029938,2]
[424155075,1780614651000,-155.1405297,0.00029938,2]
[424155070,1780614651000,-398.88238947,0.00029938,2]
[424155072,1780614651000,-198.17391839,0.00029938,2]
[424155073,1780614651000,-647.41151141,0.00029938,2]
[424155079,1780614651000,-191.29120421,0.00029954,2]
[424155081,1780614651000,-563.66482204,0.00029954,2]
[424155078,1780614651000,-485.61201758,0.00029938,2]
[424155076,1780614651000,-499.49111331,0.00029938,2]
[424155082,1780614651000,-367.34024817,0.00029954,2]
[424155084,1780614651000,-164.92393609,0.00029954,2]
[424155101,1780614651000,-552.72176025,0.00029973,2]
[424155090,1780614651000,-477.07253157,0.00029973,2]
[424155092,1780614651000,-257.46780031,0.00029973,2]
[424155085,1780614651000,-292.4130738,0.00029954,2]
[424155089,1780614651000,-306.57186796,0.00029973,2]
[424155091,1780614651000,-199.98862997,0.00029973,2]
[424155088,1780614651000,-505.15108439,0.00029973,2]
[424155086,1780614651000,-393.85046726,0.00029954,2]
[424155083,1780614651000,-285.72710543,0.00029954,2]
[424155080,1780614651000,-167.97166807,0.00029954,2]
[424155087,1780614651000,-377.07855466,0.00029954,2]
[424155167,1780614652000,-834.811559,0.00030137,7]
[424155176,1780614652000,-500.0,0.00030184,19]
[424155165,1780614652000,-151.0,0.00030137,7]
[424155160,1780614652000,-281.49,0.00030137,2]
[424155166,1780614652000,-150.0,0.00030137,30]
[424155154,1780614652000,-930.00012045,0.00030137,120]
[424155164,1780614652000,-151.0,0.00030137,7]
[424155163,1780614652000,-151.0,0.00030137,7]
[424155161,1780614652000,-281.49,0.00030137,2]
[424155158,1780614652000,-281.5,0.00030137,2]
[424155170,1780614652000,-834.811559,0.00030137,7]
[424155162,1780614652000,-12635.13,0.00030137,7]
[424155168,1780614652000,-834.811559,0.00030137,7]
[424155177,1780614652000,-493.480086,0.000302,2]
[424155172,1780614652000,-151.0,0.00030137,7]
[424155175,1780614652000,-671.576668,0.00030182,2]
[424155171,1780614652000,-151.0,0.00030137,7]
[424155174,1780614652000,-735.98,0.00030172,120]
[424155173,1780614652000,-154.2948,0.00030137,7]
[424155178,1780614652000,-252.06,0.000302,2]
[424155179,1780614652000,-3745.4,0.00030239,2]
[424155180,1780614652000,-151.0,0.00030239,7]
[424155182,1780614652000,-187.729829,0.00030239,7]
[424155189,1780614652000,-258.0,0.00030369,30]
[424155188,1780614652000,-437.0,0.00030369,30]
[424155181,1780614652000,-151.0,0.00030239,7]
[424155159,1780614652000,-281.49,0.00030137,2]
[424155169,1780614652000,-834.811559,0.00030137,7]
[424155156,1780614652000,-930.0000003,0.00030137,120]
[424155126,1780614652000,-2500.0,0.00030137,120]
[424155153,1780614652000,-930.00240898,0.00030137,120]
[424155186,1780614652000,-504.0,0.00030247,5]
[424155127,1780614652000,-1000.0,0.00030137,120]
[424155131,1780614652000,-500.0,0.00030137,3]
[424155137,1780614652000,-500.0,0.00030137,3]
[424155129,1780614652000,-583.80346073,0.00030137,2]
[424155136,1780614652000,-500.0,0.00030137,3]
[424155139,1780614652000,-500.0,0.00030137,3]
[424155130,1780614652000,-500.0,0.00030137,3]
[424155132,1780614652000,-500.0,0.00030137,3]
[424155134,1780614652000,-150.0,0.00030137,2]
[424155128,1780614652000,-389.20230715,0.00030137,2]
[424155133,1780614652000,-500.0,0.00030137,3]
[424155135,1780614652000,-500.0,0.00030137,3]
[424155157,1780614652000,-930.00000002,0.00030137,120]
[424155138,1780614652000,-500.0,0.00030137,3]
[424155151,1780614652000,-930.96359283,0.00030137,120]
[424155152,1780614652000,-930.04817964,0.00030137,120]
[424155144,1780614652000,-266.38,0.00030137,2]
[424155149,1780614652000,-1786.246574,0.00030137,15]
[424155145,1780614652000,-1500.0,0.00030137,15]
[424155143,1780614652000,-1500.0,0.00030137,15]
[424155146,1780614652000,-1500.0,0.00030137,15]
[424155142,1780614652000,-1500.0,0.00030137,15]
[424155140,1780614652000,-1500.0,0.00030137,15]
[424155147,1780614652000,-1500.0,0.00030137,15]
[424155148,1780614652000,-1500.0,0.00030137,15]
[424155150,1780614652000,-281.5,0.00030137,2]
[424155155,1780614652000,-930.00000602,0.00030137,120]
[424155141,1780614652000,-1500.0,0.00030137,15]
[424155187,1780614652000,-179.20247452,0.00030275,2]
[424155249,1780614652000,-500.0,0.00030387,2]
[424155183,1780614652000,-187.729829,0.00030239,7]
[424155225,1780614652000,-500.0,0.00030387,2]
[424155221,1780614652000,-500.0,0.00030387,2]
[424155227,1780614652000,-500.0,0.00030387,2]
[424155222,1780614652000,-500.0,0.00030387,2]
[424155218,1780614652000,-500.0,0.00030387,2]
[424155223,1780614652000,-500.0,0.00030387,2]
[424155224,1780614652000,-500.0,0.00030387,2]
[424155229,1780614652000,-500.0,0.00030387,2]
[424155228,1780614652000,-500.0,0.00030387,2]
[424155239,1780614652000,-500.0,0.00030387,2]
[424155230,1780614652000,-500.0,0.00030387,2]
[424155233,1780614652000,-500.0,0.00030387,2]
[424155234,1780614652000,-500.0,0.00030387,2]
[424155220,1780614652000,-500.0,0.00030387,2]
[424155235,1780614652000,-500.0,0.00030387,2]
[424155231,1780614652000,-500.0,0.00030387,2]
[424155238,1780614652000,-500.0,0.00030387,2]
[424155237,1780614652000,-500.0,0.00030387,2]
[424155236,1780614652000,-500.0,0.00030387,2]
[424155240,1780614652000,-500.0,0.00030387,2]
[424155242,1780614652000,-500.0,0.00030387,2]
[424155244,1780614652000,-500.0,0.00030387,2]
[424155241,1780614652000,-500.0,0.00030387,2]
[424155243,1780614652000,-500.0,0.00030387,2]
[424155245,1780614652000,-500.0,0.00030387,2]
[424155248,1780614652000,-500.0,0.00030387,2]
[424155246,1780614652000,-500.0,0.00030387,2]
[424155185,1780614652000,-187.729829,0.00030239,7]
[424155232,1780614652000,-500.0,0.00030387,2]
[424155226,1780614652000,-500.0,0.00030387,2]
[424155247,1780614652000,-500.0,0.00030387,2]
[424155216,1780614652000,-500.0,0.00030387,2]
[424155184,1780614652000,-187.729829,0.00030239,7]
[424155191,1780614652000,-443.0,0.00030369,30]
[424155201,1780614652000,-314.0,0.00030387,30]
[424155192,1780614652000,-245.0,0.00030369,30]
[424155190,1780614652000,-2842.0,0.00030369,30]
[424155202,1780614652000,-1760.0,0.00030387,30]
[424155193,1780614652000,-2393.0,0.00030369,30]
[424155219,1780614652000,-500.0,0.00030387,2]
[424155199,1780614652000,-489.0,0.00030387,30]
[424155198,1780614652000,-279.0,0.00030387,30]
[424155196,1780614652000,-332.0,0.00030377,30]
[424155195,1780614652000,-995.0,0.00030377,30]
[424155197,1780614652000,-762.19,0.00030378,7]
[424155200,1780614652000,-183.0,0.00030387,30]
[424155194,1780614652000,-557.0,0.00030369,30]
[424155204,1780614652000,-275.83916,0.00030387,7]
[424155203,1780614652000,-151.0,0.00030387,7]
[424155217,1780614652000,-500.0,0.00030387,2]
[424155215,1780614652000,-500.0,0.00030387,2]
[424155210,1780614652000,-1541.829306,0.00030387,7]
[424155209,1780614652000,-1541.829306,0.00030387,7]
[424155208,1780614652000,-1541.829306,0.00030387,7]
[424155214,1780614652000,-500.0,0.00030387,2]
[424155213,1780614652000,-500.0,0.00030387,2]
[424155207,1780614652000,-275.83916,0.00030387,7]
[424155211,1780614652000,-1541.829306,0.00030387,7]
[424155206,1780614652000,-275.83916,0.00030387,7]
[424155205,1780614652000,-275.83916,0.00030387,7]
[424155212,1780614652000,-500.0,0.00030387,2]
[424155291,1780614653000,-310.28105939,0.00030519,2]
[424155290,1780614653000,-154.67999322,0.00030519,2]
[424155287,1780614653000,-863.21534854,0.00030519,2]
[424155250,1780614653000,-151.0,0.00030387,7]
[424155289,1780614653000,-240.72063828,0.00030519,2]
[424155284,1780614653000,-476.81022896,0.00030519,2]
[424155298,1780614653000,-151.0,0.00030519,7]
[424155288,1780614653000,-473.32101168,0.00030519,2]
[424155283,1780614653000,-199.41427773,0.00030519,2]
[424155282,1780614653000,-427.77189756,0.00030519,2]
[424155279,1780614653000,-340.81357991,0.00030519,2]
[424155300,1780614653000,-382.58240841,0.00030535,2]
[424155293,1780614653000,-255.62735591,0.00030519,2]
[424155306,1780614653000,-254.69439374,0.00030535,2]
[424155297,1780614653000,-151.0,0.00030519,7]
[424155296,1780614653000,-152.594755,0.00030519,7]
[424155295,1780614653000,-647.48269011,0.00030519,2]
[424155292,1780614653000,-665.98815108,0.00030519,2]
[424155301,1780614653000,-335.94333615,0.00030535,2]
[424155312,1780614653000,-329.84787218,0.00030535,2]
[424155302,1780614653000,-185.62484082,0.00030535,2]
[424155305,1780614653000,-751.55309606,0.00030535,2]
[424155311,1780614653000,-167.95583231,0.00030535,2]
[424155303,1780614653000,-398.2888122,0.00030535,2]
[424155307,1780614653000,-238.82427377,0.00030535,2]
[424155304,1780614653000,-350.7169953,0.00030535,2]
[424155275,1780614653000,-416.78221074,0.00030519,2]
[424155294,1780614653000,-383.09573168,0.00030519,2]
[424155285,1780614653000,-329.11110173,0.00030519,2]
[424155266,1780614653000,-298.342053,0.00030387,2]
[424155286,1780614653000,-396.34783679,0.00030519,2]
[424155251,1780614653000,-500.0,0.00030387,2]
[424155252,1780614653000,-500.0,0.00030387,2]
[424155254,1780614653000,-500.0,0.00030387,2]
[424155257,1780614653000,-500.0,0.00030387,2]
[424155255,1780614653000,-500.0,0.00030387,2]
[424155253,1780614653000,-500.0,0.00030387,2]
[424155256,1780614653000,-500.0,0.00030387,2]
[424155259,1780614653000,-500.0,0.00030387,2]
[424155261,1780614653000,-500.0,0.00030387,2]
[424155260,1780614653000,-500.0,0.00030387,2]
[424155262,1780614653000,-500.0,0.00030387,2]
[424155258,1780614653000,-500.0,0.00030387,2]
[424155264,1780614653000,-500.0,0.00030387,2]
[424155263,1780614653000,-500.0,0.00030387,2]
[424155265,1780614653000,-500.0,0.00030387,2]
[424155272,1780614653000,-457.84533819,0.00030519,2]
[424155270,1780614653000,-200.0,0.00030456,2]
[424155267,1780614653000,-1707.67,0.000304,7]
[424155269,1780614653000,-1004.48,0.00030426,7]
[424155273,1780614653000,-394.85989273,0.00030519,2]
[424155268,1780614653000,-178.9,0.00030411,120]
[424155271,1780614653000,-374.59810171,0.00030482,4]
[424155274,1780614653000,-432.75706051,0.00030519,2]
[424155276,1780614653000,-653.14837176,0.00030519,2]
[424155277,1780614653000,-523.16074405,0.00030519,2]
[424155278,1780614653000,-599.59856992,0.00030519,2]
[424155310,1780614653000,-571.45421086,0.00030535,2]
[424155281,1780614653000,-598.3235842,0.00030519,2]
[424155308,1780614653000,-551.01037226,0.00030535,2]
[424155280,1780614653000,-317.19127502,0.00030519,2]